[Event "GER-ch Youth-U12 2024"]
[Site "Willingen"]
[Date "2024.05.22"]
[Round "6"]
[White "Fass, Ben"]
[Black "Subocz, Barbara"]
[Result "1/2-1/2"]
[ECO "B22"]
[WhiteElo "1027"]
[BlackElo "1692"]
[Annotator "NA"]
[PlyCount "162"]
[EventDate "2022.06.05"]
[EventType "swiss"]
[EventRounds "9"]
[EventCountry "GER"]
[SourceTitle "playchess.com"]
[Source "ChessBase"]
[SourceQuality "1"]
[TimeControl "40/4500+30:900+30"]

1. e4 {[%emt 0:00:00]} c5 {[%emt 0:00:00]} 2. c3 {[%emt 0:00:00]} d5 {[%emt 0:00:00]} 3. exd5 {[%emt 0:00:00]} Qxd5 {[%emt 0:00:00]} 4. d4 {[%emt 0:00:00]} Nf6 {[%emt 0:00:00]} 5. Nf3 {[%emt 0:00:00]} Bg4 {[%emt 0:00:10]} 6. Be2 {[%emt 0:00:00]} e6 {[%emt 0:00:00]} 7. c4 {[%emt 0:00:00]} Qd8 {[%emt 0:00:00]} 8. h3 {[%emt 0:00:00]} Bh5 {[%emt 0:00:00]} 9. Nc3 {[%emt 0:00:00]} Nc6 {[%emt 0:00:00]} 10. Be3 {[%emt 0:00:00]} cxd4 {[%emt 0:00:00]} 11. Bxd4 {[%emt 0:00:00]} Nxd4 {[%emt 0:00:00]} 12. Qxd4 {[%emt 0:00:00]} Be7 {[%emt 0:00:00]} 13. O-O-O {[%emt 0:00:00]} Qc7 {[%emt 0:00:00]} 14. Nb5 {[%emt 0:00:00]} Qa5 {[%emt 0:00:00]} 15. g4 {[%emt 0:02:27]} Bg6 {[%emt 0:00:00]} 16. g5 {[%emt 0:01:44]} Nh5 {[%emt 0:00:00]} 17. Qd7+ {[%emt 0:00:38]} Kf8 {[%emt 0:00:00]} 18. Qxb7 {[%emt 0:01:07]} Rd8 {[%emt 0:01:58]} 19. Qxa7 {[%emt 0:02:48]} Qxa7 {[%emt 0:02:12]} 20. Rxd8+ {[%emt 0:01:22]} Bxd8 {[%emt 0:00:11]} 21. Nxa7 {[%emt 0:00:13]} f6 {[%emt 0:00:32]} 22. Rd1 {[%emt 0:00:21]} Kf7 {[%emt 0:00:14]} 23. Nc6 {[%emt 0:00:48]} Bb6 {[%emt 0:02:15]} 24. gxf6 {[%emt 0:01:33]} gxf6 {[%emt 0:00:41]} 25. Na7 {[%emt 0:04:44]} Ra8 {[%emt 0:00:33]} 26. Rd6 {[%emt 0:02:04]} Bxa7 {[%emt 0:01:29]} 27. Ra6 {[%emt 0:00:51]} Be3+ {[%emt 0:00:18]} 28. fxe3 {[%emt 0:00:52]} Rxa6 {[%emt 0:04:30]} 29. a3 {[%emt 0:00:10]} Ng3 {[%emt 0:00:34]} 30. Ng1 {[%emt 0:00:24]} Nxe2+ {[%emt 0:00:26]} 31. Nxe2 {[%emt 0:00:09]} Bd3 {[%emt 0:00:05]} 32. Kd2 {[%emt 0:02:58]} Bxc4 {[%emt 0:00:13]} 33. Nd4 {[%emt 0:00:21]} Rd6 {[%emt 0:00:23]} 34. Kc3 {[%emt 0:00:25]} Bf1 {[%emt 0:00:21]} 35. h4 {[%emt 0:00:35]} Rd5 {[%emt 0:00:47]} 36. b4 {[%emt 0:00:22]} Re5 {[%emt 0:01:46]} 37. Nc2 {[%emt 0:00:54]} Rh5 {[%emt 0:00:40]} 38. a4 {[%emt 0:00:25]} Rxh4 {[%emt 0:00:16]} 39. a5 {[%emt 0:00:13]} Rc4+ {[%emt 0:00:11]} 40. Kb3 {[%emt 0:00:52]} Rc6 {[%emt 0:00:17]} 41. Nd4 {[%emt 0:15:29]} Ra6 {[%emt 0:16:25]} 42. Ka4 {[%emt 0:00:18]} h5 {[%emt 0:00:21]} 43. b5 {[%emt 0:00:12]} Bxb5+ {[%emt 0:00:32]} 44. Kxb5 {[%emt 0:00:14]} Ra8 {[%emt 0:00:25]} 45. Kb6 {[%emt 0:00:25]} h4 {[%emt 0:00:05]} 46. Nf3 {[%emt 0:00:28]} h3 {[%emt 0:00:04]} 47. a6 {[%emt 0:00:13]} Rb8+ {[%emt 0:00:37]} 48. Kc7 {[%emt 0:00:20]} Ra8 {[%emt 0:00:41]} 49. Kb7 {[%emt 0:00:15]} Rxa6 {[%emt 0:00:23]} 50. Kxa6 {[%emt 0:00:09]} e5 {[%emt 0:00:05]} 51. Nh2 {[%emt 0:05:02]} Kg6 {[%emt 0:00:47]} 52. Kb5 {[%emt 0:00:39]} Kg5 {[%emt 0:00:33]} 53. Nf1 {[%emt 0:02:18]} Kg4 {[%emt 0:00:12]} 54. Kc4 {[%emt 0:02:25]} Kf3 {[%emt 0:00:27]} 55. Kd3 {[%emt 0:00:55]} Kf2 {[%emt 0:00:15]} 56. Nh2 {[%emt 0:02:37]} Kg2 {[%emt 0:00:17]} 57. Ng4 {[%emt 0:01:50]} f5 {[%emt 0:00:12]} 58. Nxe5 {[%emt 0:02:24]} h2 {[%emt 0:00:06]} 59. e4 {[%emt 0:02:14]} fxe4+ {[%emt 0:00:16]} 60. Kxe4 {[%emt 0:00:09]} h1=Q {[%emt 0:00:13]} 61. Kf4 {[%emt 0:00:23]} Qh4+ {[%emt 0:00:29]} 62. Kf5 {[%emt 0:00:19]} Qf2+ {[%emt 0:00:29]} 63. Ke4 {[%emt 0:00:12]} Kg3 {[%emt 0:01:03]} 64. Kd5 {[%emt 0:00:16]} Qf5 {[%emt 0:00:18]} 65. Kd4 {[%emt 0:00:33]} Kf4 {[%emt 0:01:17]} 66. Nd3+ {[%emt 0:00:27]} Kg5 {[%emt 0:00:30]} 67. Kc4 {[%emt 0:00:19]} Qe4+ {[%emt 0:00:20]} 68. Kc3 {[%emt 0:00:19]} Kf5 {[%emt 0:00:20]} 69. Kc2 {[%emt 0:00:54]} Ke6 {[%emt 0:00:58]} 70. Kc3 {[%emt 0:00:12]} Kd5 {[%emt 0:00:39]} 71. Nb4+ {[%emt 0:01:23]} Kc5 {[%emt 0:00:08]} 72. Nd3+ {[%emt 0:00:23]} Kb5 {[%emt 0:00:17]} 73. Kd2 {[%emt 0:00:46]} Kc4 {[%emt 0:00:32]} 74. Nf2 {[%emt 0:00:48]} Qf3 {[%emt 0:01:00]} 75. Nd1 {[%emt 0:00:42]} Qd3+ {[%emt 0:00:38]} 76. Ke1 {[%emt 0:00:16]} Kd4 {[%emt 0:00:38]} 77. Nf2 {[%emt 0:00:25]} Qe3+ {[%emt 0:00:10]} 78. Kf1 {[%emt 0:00:21]} Qf3 {[%emt 0:01:34]} 79. Ke1 {[%emt 0:01:57]} Ke3 {[%emt 0:00:33]} 80. Nd1+ {[%emt 0:00:08]} Kd3 {[%emt 0:00:35]} 81. Nf2+ {[%emt 0:00:09]} Kc2 {[%emt 0:00:15]} 1/2-1/2

[Event "GER-ch Youth-U12 2024"]
[Site "Willingen"]
[Date "2024.05.23"]
[Round "7"]
[White "Nezhyvenko, Mykhaylo"]
[Black "Junge, Mattheo Gabriel"]
[Result "1/2-1/2"]
[ECO "B18"]
[WhiteElo "2075"]
[BlackElo "1817"]
[Annotator "RC"]
[PlyCount "151"]
[EventDate "2022.06.05"]
[EventType "swiss"]
[EventRounds "9"]
[EventCountry "GER"]
[SourceTitle "playchess.com"]
[Source "ChessBase"]
[SourceQuality "1"]
[TimeControl "40/4500+30:900+30"]

1. e4 {[%emt 0:00:00]} c6 {[%emt 0:00:00]} 2. d4 {[%emt 0:00:00]} d5 {[%emt 0:00:00]} 3. Nc3 {[%emt 0:00:00]} dxe4 {[%emt 0:00:00]} 4. Nxe4 {[%emt 0:00:00]} Bf5 {[%emt 0:00:00]} 5. Ng3 {[%emt 0:00:00]} Bg6 {[%emt 0:00:00]} 6. Nf3 {[%emt 0:00:00]} Nd7 {[%emt 0:00:00]} 7. Nh4 {[%emt 0:00:00]} e6 {[%emt 0:00:00]} 8. Nxg6 {[%emt 0:00:00]} hxg6 {[%emt 0:00:00]} 9. Bd3 {[%emt 0:00:00]} Qc7 {[%emt 0:00:00]} 10. h3 {[%emt 0:00:45]} Ngf6 {[%emt 0:00:00]} 11. O-O {[%emt 0:04:01]} Bd6 {[%emt 0:00:00]} 12. Ne4 {[%emt 0:02:43]} Nxe4 {[%emt 0:00:00]} 13. Bxe4 {[%emt 0:00:03]} Nf6 {[%emt 0:02:40]} 14. Bf3 {[%emt 0:13:21]} O-O {[%emt 0:07:08]} 15. Qe2 {[%emt 0:06:08]} Rad8 {[%emt 0:09:29]} 16. c3 {[%emt 0:02:15]} Bh2+ {[%emt 0:06:49]} 17. Kh1 {[%emt 0:00:12]} Bf4 {[%emt 0:00:08]} 18. Bxf4 {[%emt 0:02:26]} Qxf4 {[%emt 0:00:10]} 19. g3 {[%emt 0:00:16]} Qc7 {[%emt 0:00:15]} 20. Kg2 {[%emt 0:01:04]} Rfe8 {[%emt 0:01:16]} 21. Rae1 {[%emt 0:02:48]} Rd7 {[%emt 0:02:07]} 22. h4 {[%emt 0:05:19]} Rde7 {[%emt 0:01:52]} 23. Qc2 {[%emt 0:03:16]} e5 {[%emt 0:09:33]} 24. dxe5 {[%emt 0:00:16]} Rxe5 {[%emt 0:00:16]} 25. Rxe5 {[%emt 0:00:21]} Qxe5 {[%emt 0:00:28]} 26. Rd1 {[%emt 0:03:26]} Qa5 {[%emt 0:02:59]} 27. a4 {[%emt 0:01:28]} Qe5 {[%emt 0:05:02]} 28. Qb3 {[%emt 0:01:44]} Qc7 {[%emt 0:03:32]} 29. Qb4 {[%emt 0:09:15]} Re6 {[%emt 0:07:19]} 30. Qd4 {[%emt 0:01:29]} a6 {[%emt 0:03:24]} 31. b4 {[%emt 0:02:56]} Re7 {[%emt 0:01:49]} 32. Qc4 {[%emt 0:04:39]} Rd7 {[%emt 0:01:22]} 33. Re1 {[%emt 0:02:32]} Re7 {[%emt 0:01:38]} 34. Rb1 {[%emt 0:03:10]} Rd7 {[%emt 0:02:43]} 35. Qc5 {[%emt 0:02:01]} Re7 {[%emt 0:06:33]} 36. Rd1 {[%emt 0:03:01]} Rd7 {[%emt 0:00:30]} 37. Re1 {[%emt 0:00:07]} Qd6 {[%emt 0:05:50]} 38. Qa7 {[%emt 0:02:54]} Qc7 {[%emt 0:00:54]} 39. c4 {[%emt 0:02:34]} Re7 {[%emt 0:01:46]} 40. Rxe7 {[%emt 0:01:00]} Qxe7 {[%emt 0:00:05]} 41. Bxc6 {[%emt 0:15:37]} Qxb4 {[%emt 0:15:25]} 42. Bxb7 {[%emt 0:00:09]} Qxa4 {[%emt 0:04:24]} 43. Qxa6 {[%emt 0:00:23]} Qxa6 {[%emt 0:00:30]} 44. Bxa6 {[%emt 0:00:02]} Nd7 {[%emt 0:00:14]} 45. Bb7 {[%emt 0:02:12]} Kf8 {[%emt 0:00:22]} 46. Bd5 {[%emt 0:01:19]} Ke7 {[%emt 0:00:09]} 47. Kf3 {[%emt 0:00:11]} f6 {[%emt 0:00:21]} 48. Ke3 {[%emt 0:00:37]} Kd6 {[%emt 0:00:41]} 49. Kd4 {[%emt 0:00:04]} Nc5 {[%emt 0:01:24]} 50. Ke3 {[%emt 0:00:00]} g5 {[%emt 0:00:00]} 51. h5 {[%emt 0:00:00]} Ke5 {[%emt 0:00:00]} 52. Kd2 {[%emt 0:00:00]} f5 {[%emt 0:00:00]} 53. Kc3 {[%emt 0:00:00]} f4 {[%emt 0:00:00]} 54. g4 {[%emt 0:00:00]} Nd7 {[%emt 0:00:00]} 55. f3 {[%emt 0:00:00]} Nc5 {[%emt 0:00:00]} 56. Kb4 {[%emt 0:00:00]} Kd6 {[%emt 0:00:00]} 57. Kb5 {[%emt 0:00:00]} Nd7 {[%emt 0:00:00]} 58. Ba8 {[%emt 0:00:00]} Nc5 {[%emt 0:00:00]} 59. Bc6 {[%emt 0:00:00]} Nd3 {[%emt 0:00:00]} 60. Kb6 {[%emt 0:00:00]} Nc5 {[%emt 0:00:00]} 61. Bd5 {[%emt 0:00:02]} Nd3 {[%emt 0:00:00]} 62. Kb7 {[%emt 0:00:49]} Kd7 {[%emt 0:00:00]} 63. Kb6 {[%emt 0:01:00]} Kd6 {[%emt 0:00:00]} 64. Be4 {[%emt 0:00:07]} Nc5 {[%emt 0:00:00]} 65. Bf5 {[%emt 0:01:12]} Nb3 {[%emt 0:00:00]} 66. Kb7 {[%emt 0:02:29]} Nd2 {[%emt 0:00:00]} 67. Bd3 {[%emt 0:03:47]} Nxf3 {[%emt 0:00:00]} 68. Kb6 {[%emt 0:00:04]} Nd4 {[%emt 0:01:38]} 69. c5+ {[%emt 0:05:45]} Kd5 {[%emt 0:00:10]} 70. Be2 {[%emt 0:01:17]} Nxe2 {[%emt 0:04:05]} 71. c6 {[%emt 0:00:01]} f3 {[%emt 0:00:07]} 72. c7 {[%emt 0:00:01]} f2 {[%emt 0:00:08]} 73. c8=Q {[%emt 0:00:01]} f1=Q {[%emt 0:00:09]} 74. Qd7+ {[%emt 0:00:20]} Ke4 {[%emt 0:00:09]} 75. Qxg7 {[%emt 0:00:16]} Qg1+ {[%emt 0:00:46]} 76. Kb7 {[%emt 0:00:46]} 1/2-1/2

[Event "GER-ch Youth-U12 2024"]
[Site "Willingen"]
[Date "2024.05.23"]
[Round "7"]
[White "Belin, Anton"]
[Black "Meijers, Janis"]
[Result "1-0"]
[ECO "B15"]
[WhiteElo "1948"]
[BlackElo "1787"]
[Annotator "NA RC"]
[PlyCount "105"]
[EventDate "2022.06.05"]
[EventType "swiss"]
[EventRounds "9"]
[EventCountry "GER"]
[SourceTitle "playchess.com"]
[Source "ChessBase"]
[SourceQuality "1"]
[TimeControl "40/4500+30:900+30"]

1. e4 {[%emt 0:00:00]} c6 {[%emt 0:00:00]} 2. d4 {[%emt 0:00:00]} d5 {[%emt 0:00:00]} 3. Nd2 {[%emt 0:00:00]} dxe4 {[%emt 0:00:00]} 4. Nxe4 {[%emt 0:00:00]} Nf6 {[%emt 0:00:00]} 5. Nxf6+ {[%emt 0:00:00]} exf6 {[%emt 0:00:00]} 6. c3 {[%emt 0:00:00]} Bd6 {[%emt 0:00:00]} 7. Bd3 {[%emt 0:00:00]} O-O {[%emt 0:00:00]} 8. Qc2 {[%emt 0:00:00]} Re8+ {[%emt 0:00:00]} 9. Ne2 {[%emt 0:00:00]} h5 {[%emt 0:00:00]} 10. O-O {[%emt 0:00:00]} Qc7 {[%emt 0:00:00]} 11. h3 {[%emt 0:00:00]} h4 {[%emt 0:00:00]} 12. Bd2 {[%emt 0:00:00]} f5 {[%emt 0:00:00]} 13. Rae1 {[%emt 0:00:00]} g6 {[%emt 0:04:17]} 14. c4 {[%emt 0:00:00]} Be6 {[%emt 0:18:20]} 15. Nc3 {[%emt 0:02:14]} Na6 {[%emt 0:06:09]} 16. a3 {[%emt 0:04:17]} f4 {[%emt 0:09:53]} 17. c5 {[%emt 0:01:18]} Bf8 {[%emt 0:00:17]} 18. Bxg6 {[%emt 0:02:02]} fxg6 {[%emt 0:00:11]} 19. Qxg6+ {[%emt 0:00:06]} Qg7 {[%emt 0:00:04]} 20. Rxe6 {[%emt 0:00:06]} f3 {[%emt 0:06:12]} 21. Ne4 {[%emt 0:02:46]} Rxe6 {[%emt 0:07:58]} 22. Qxe6+ {[%emt 0:00:07]} Kh8 {[%emt 0:00:08]} 23. Bg5 {[%emt 0:01:17]} Nc7 {[%emt 0:05:22]} 24. Qg4 {[%emt 0:05:01]} fxg2 {[%emt 0:07:42]} 25. Bf6 {[%emt 0:00:31]} gxf1=Q+ {[%emt 0:00:26]} 26. Kxf1 {[%emt 0:00:06]} Kg8 {[%emt 0:05:21]} 27. Bxg7 {[%emt 0:00:57]} Bxg7 {[%emt 0:00:11]} 28. Nf6+ {[%emt 0:01:27]} Kf7 {[%emt 0:00:39]} 29. Nh5 {[%emt 0:01:16]} Ne6 {[%emt 0:04:50]} 30. Nxg7 {[%emt 0:00:07]} Nxg7 {[%emt 0:00:07]} 31. Qd7+ {[%emt 0:00:05]} Kf6 {[%emt 0:00:44]} 32. Qxb7 {[%emt 0:00:06]} Rd8 {[%emt 0:00:33]} 33. Qxc6+ {[%emt 0:00:06]} Kf5 {[%emt 0:01:03]} 34. Qf3+ {[%emt 0:00:13]} Ke6 {[%emt 0:00:30]} 35. Qe4+ {[%emt 0:00:14]} Kf7 {[%emt 0:00:19]} 36. c6 {[%emt 0:00:05]} a5 {[%emt 0:01:09]} 37. c7 {[%emt 0:00:12]} Rc8 {[%emt 0:02:58]} 38. Qb7 {[%emt 0:00:07]} Rxc7 {[%emt 0:00:04]} 39. Qxc7+ {[%emt 0:00:05]} Kf6 {[%emt 0:01:03]} 40. d5 {[%emt 0:00:05]} Ne8 {[%emt 0:01:32]} 41. d6 {[%emt 0:15:04]} Nxc7 {[%emt 0:15:12]} 42. dxc7 {[%emt 0:00:06]} a4 {[%emt 0:00:11]} 43. c8=Q {[%emt 0:00:05]} Ke5 {[%emt 0:00:14]} 44. Qc4 {[%emt 0:00:05]} Kd6 {[%emt 0:00:07]} 45. Qb5 {[%emt 0:00:04]} Ke6 {[%emt 0:00:10]} 46. Ke2 {[%emt 0:00:04]} Kd6 {[%emt 0:00:06]} 47. Kd3 {[%emt 0:00:04]} Ke6 {[%emt 0:00:08]} 48. Ke4 {[%emt 0:00:04]} Kf7 {[%emt 0:00:13]} 49. Qc6 {[%emt 0:00:02]} Kf8 {[%emt 0:00:13]} 50. Qc7 {[%emt 0:00:04]} Ke8 {[%emt 0:00:04]} 51. Kf5 {[%emt 0:00:05]} Kf8 {[%emt 0:00:05]} 52. Kf6 {[%emt 0:00:05]} Ke8 {[%emt 0:00:09]} 53. Qc8# {[%emt 0:00:04]} 1-0

[Event "GER-ch Youth-U12 2024"]
[Site "Willingen"]
[Date "2024.05.23"]
[Round "7"]
[White "Li, Yunqi"]
[Black "Tarasenko, Nazar"]
[Result "1-0"]
[ECO "B92"]
[WhiteElo "1940"]
[BlackElo "2061"]
[Annotator "NA RC"]
[PlyCount "125"]
[EventDate "2022.06.05"]
[EventType "swiss"]
[EventRounds "9"]
[EventCountry "GER"]
[SourceTitle "playchess.com"]
[Source "ChessBase"]
[SourceQuality "1"]
[TimeControl "40/4500+30:900+30"]

1. e4 {[%emt 0:00:00]} c5 {[%emt 0:00:00]} 2. Nf3 {[%emt 0:00:00]} d6 {[%emt 0:00:00]} 3. d4 {[%emt 0:00:00]} cxd4 {[%emt 0:00:00]} 4. Nxd4 {[%emt 0:00:00]} Nf6 {[%emt 0:00:00]} 5. Nc3 {[%emt 0:00:00]} a6 {[%emt 0:00:00]} 6. Be2 {[%emt 0:00:00]} e5 {[%emt 0:00:00]} 7. Nb3 {[%emt 0:00:00]} Be7 {[%emt 0:00:00]} 8. O-O {[%emt 0:00:00]} O-O {[%emt 0:00:00]} 9. Be3 {[%emt 0:00:00]} b5 {[%emt 0:00:00]} 10. Nd5 {[%emt 0:00:00]} Nbd7 {[%emt 0:00:00]} 11. Nxe7+ {[%emt 0:00:00]} Qxe7 {[%emt 0:00:00]} 12. f3 {[%emt 0:00:00]} Qe6 {[%emt 0:00:00]} 13. a4 {[%emt 0:00:40]} d5 {[%emt 0:11:13]} 14. axb5 {[%emt 0:10:46]} dxe4 {[%emt 0:05:03]} 15. fxe4 {[%emt 0:01:18]} Bb7 {[%emt 0:02:42]} 16. bxa6 {[%emt 0:10:45]} Bxe4 {[%emt 0:01:14]} 17. Bf3 {[%emt 0:02:33]} Bxf3 {[%emt 0:01:54]} 18. Qxf3 {[%emt 0:00:33]} Rxa6 {[%emt 0:00:08]} 19. Rxa6 {[%emt 0:02:06]} Qxa6 {[%emt 0:00:08]} 20. Nc5 {[%emt 0:01:47]} Nxc5 {[%emt 0:02:55]} 21. Bxc5 {[%emt 0:01:29]} Re8 {[%emt 0:00:21]} 22. b4 {[%emt 0:03:45]} e4 {[%emt 0:01:39]} 23. Qg3 {[%emt 0:01:46]} Qe6 {[%emt 0:03:36]} 24. Bd4 {[%emt 0:04:05]} Nh5 {[%emt 0:02:32]} 25. Qh4 {[%emt 0:03:49]} Qd5 {[%emt 0:00:46]} 26. c3 {[%emt 0:00:54]} e3 {[%emt 0:01:24]} 27. Qg4 {[%emt 0:01:09]} h6 {[%emt 0:03:12]} 28. Re1 {[%emt 0:05:45]} Re6 {[%emt 0:09:29]} 29. Rxe3 {[%emt 0:05:24]} Rg6 {[%emt 0:00:13]} 30. Qe4 {[%emt 0:01:03]} Qa2 {[%emt 0:00:48]} 31. Re2 {[%emt 0:01:38]} Qa1+ {[%emt 0:00:39]} 32. Re1 {[%emt 0:00:11]} Qa2 {[%emt 0:02:51]} 33. Qe2 {[%emt 0:01:05]} Qd5 {[%emt 0:00:25]} 34. Qe4 {[%emt 0:00:06]} Qa2 {[%emt 0:00:12]} 35. Be5 {[%emt 0:00:37]} Qa7+ {[%emt 0:03:22]} 36. Kh1 {[%emt 0:01:25]} Re6 {[%emt 0:01:00]} 37. Qf5 {[%emt 0:03:23]} g6 {[%emt 0:01:41]} 38. Qe4 {[%emt 0:02:59]} Kh7 {[%emt 0:01:47]} 39. Qh4 {[%emt 0:03:54]} Qa8 {[%emt 0:09:58]} 40. Bg3 {[%emt 0:02:32]} Qa6 {[%emt 0:01:35]} 41. h3 {[%emt 0:16:15]} Qd3 {[%emt 0:17:07]} 42. Bf2 {[%emt 0:08:01]} Rf6 {[%emt 0:05:24]} 43. Bd4 {[%emt 0:01:02]} Rf4 {[%emt 0:02:12]} 44. Qe7 {[%emt 0:05:24]} Ng3+ {[%emt 0:03:13]} 45. Kg1 {[%emt 0:03:37]} Rf1+ {[%emt 0:02:43]} 46. Rxf1 {[%emt 0:00:00]} Qxf1+ {[%emt 0:00:00]} 47. Kh2 {[%emt 0:00:00]} Ne2 {[%emt 0:00:00]} 48. Qe5 {[%emt 0:00:00]} Nxd4 {[%emt 0:00:00]} 49. cxd4 {[%emt 0:00:00]} f5 {[%emt 0:00:00]} 50. d5 {[%emt 0:00:00]} Qf2 {[%emt 0:00:00]} 51. d6 {[%emt 0:00:00]} f4 {[%emt 0:00:00]} 52. Qc3 {[%emt 0:00:00]} g5 {[%emt 0:00:00]} 53. Qd3+ {[%emt 0:00:00]} Kg7 {[%emt 0:00:00]} 54. d7 {[%emt 0:00:00]} g4 {[%emt 0:00:00]} 55. Qc3+ {[%emt 0:00:00]} Kh7 {[%emt 0:00:00]} 56. hxg4 {[%emt 0:00:00]} Qh4+ {[%emt 0:00:00]} 57. Kg1 {[%emt 0:00:00]} Qd8 {[%emt 0:00:00]} 58. Qc8 {[%emt 0:00:00]} Qh4 {[%emt 0:00:00]} 59. Qc2+ {[%emt 0:00:00]} Kg7 {[%emt 0:00:00]} 60. Qd2 {[%emt 0:00:00]} Qd8 {[%emt 0:00:00]} 61. Qd4+ {[%emt 0:00:00]} Kh7 {[%emt 0:00:00]} 62. Qxf4 {[%emt 0:00:00]} Qb6+ {[%emt 0:00:00]} 63. Kh2 {[%emt 0:00:00]} 1-0

[Event "GER-ch Youth-U12 2024"]
[Site "Willingen"]
[Date "2024.05.23"]
[Round "7"]
[White "Bundan, Edward"]
[Black "Hoppe, Arthur"]
[Result "1-0"]
[ECO "C04"]
[WhiteElo "1897"]
[BlackElo "1859"]
[Annotator "NA RC"]
[PlyCount "69"]
[EventDate "2022.06.05"]
[EventType "swiss"]
[EventRounds "9"]
[EventCountry "GER"]
[SourceTitle "playchess.com"]
[Source "ChessBase"]
[SourceQuality "1"]
[TimeControl "40/4500+30:900+30"]

1. e4 {[%emt 0:00:00]} e6 {[%emt 0:00:00]} 2. d4 {[%emt 0:00:00]} d5 {[%emt 0:00:00]} 3. Nd2 {[%emt 0:00:00]} Nc6 {[%emt 0:00:00]} 4. Ngf3 {[%emt 0:00:00]} Nf6 {[%emt 0:00:00]} 5. e5 {[%emt 0:00:00]} Nd7 {[%emt 0:00:00]} 6. c3 {[%emt 0:00:00]} f6 {[%emt 0:00:00]} 7. exf6 {[%emt 0:00:00]} Qxf6 {[%emt 0:00:00]} 8. Bd3 {[%emt 0:00:00]} Bd6 {[%emt 0:00:00]} 9. O-O {[%emt 0:00:00]} O-O {[%emt 0:00:00]} 10. Qb3 {[%emt 0:00:00]} Kh8 {[%emt 0:00:00]} 11. Bb1 {[%emt 0:00:00]} Rg8 {[%emt 0:20:36]} 12. Qc2 {[%emt 0:01:36]} Nf8 {[%emt 0:02:37]} 13. h4 {[%emt 0:13:36]} e5 {[%emt 0:08:33]} 14. dxe5 {[%emt 0:02:54]} Nxe5 {[%emt 0:01:06]} 15. Nxe5 {[%emt 0:00:25]} Qxe5 {[%emt 0:00:03]} 16. Nf3 {[%emt 0:00:25]} Qh5 {[%emt 0:00:05]} 17. Ng5 {[%emt 0:05:45]} h6 {[%emt 0:08:37]} 18. Qe2 {[%emt 0:01:59]} g6 {[%emt 0:04:16]} 19. Qxh5 {[%emt 0:05:21]} gxh5 {[%emt 0:00:03]} 20. Nf7+ {[%emt 0:00:20]} Kg7 {[%emt 0:00:05]} 21. Nxd6 {[%emt 0:01:00]} cxd6 {[%emt 0:01:03]} 22. Bf4 {[%emt 0:00:42]} Kf6 {[%emt 0:01:55]} 23. Bxd6 {[%emt 0:00:32]} Be6 {[%emt 0:00:41]} 24. Re1 {[%emt 0:04:29]} Ng6 {[%emt 0:00:18]} 25. Bxg6 {[%emt 0:00:46]} Rxg6 {[%emt 0:00:05]} 26. Kh2 {[%emt 0:01:11]} Rd8 {[%emt 0:00:15]} 27. Be5+ {[%emt 0:00:20]} Kf7 {[%emt 0:00:06]} 28. Re3 {[%emt 0:00:35]} Rdg8 {[%emt 0:00:04]} 29. g3 {[%emt 0:00:39]} Rg4 {[%emt 0:00:21]} 30. Rae1 {[%emt 0:00:23]} R4g6 {[%emt 0:01:19]} 31. a3 {[%emt 0:00:26]} Rf8 {[%emt 0:00:27]} 32. Rf3+ {[%emt 0:00:21]} Ke8 {[%emt 0:00:05]} 33. Rxf8+ {[%emt 0:00:18]} Kxf8 {[%emt 0:00:04]} 34. Bd4 {[%emt 0:00:30]} a6 {[%emt 0:01:00]} 35. Re5 {[%emt 0:01:35]} 1-0

[Event "GER-ch Youth-U12 2024"]
[Site "Willingen"]
[Date "2024.05.23"]
[Round "7"]
[White "Marynychenko, Yehor"]
[Black "Zhang, Yibo"]
[Result "1-0"]
[ECO "C96"]
[WhiteElo "1896"]
[BlackElo "1988"]
[Annotator "RC"]
[PlyCount "139"]
[EventDate "2022.06.05"]
[EventType "swiss"]
[EventRounds "9"]
[EventCountry "GER"]
[SourceTitle "playchess.com"]
[Source "ChessBase"]
[SourceQuality "1"]
[TimeControl "40/4500+30:900+30"]

1. e4 {[%emt 0:00:00]} e5 {[%emt 0:00:00]} 2. Nf3 {[%emt 0:00:00]} Nc6 {[%emt 0:00:00]} 3. Bb5 {[%emt 0:00:00]} a6 {[%emt 0:00:00]} 4. Ba4 {[%emt 0:00:00]} Nf6 {[%emt 0:00:00]} 5. O-O {[%emt 0:00:00]} Be7 {[%emt 0:00:00]} 6. Re1 {[%emt 0:00:00]} b5 {[%emt 0:00:00]} 7. Bb3 {[%emt 0:00:00]} d6 {[%emt 0:00:00]} 8. c3 {[%emt 0:00:00]} O-O {[%emt 0:00:00]} 9. h3 {[%emt 0:00:00]} Na5 {[%emt 0:00:00]} 10. Bc2 {[%emt 0:00:00]} c5 {[%emt 0:00:00]} 11. d4 {[%emt 0:00:00]} Nd7 {[%emt 0:00:00]} 12. Nbd2 {[%emt 0:00:00]} Bf6 {[%emt 0:00:00]} 13. Nf1 {[%emt 0:00:00]} exd4 {[%emt 0:05:49]} 14. cxd4 {[%emt 0:00:00]} Nc6 {[%emt 0:00:13]} 15. Bf4 {[%emt 0:09:46]} cxd4 {[%emt 0:08:53]} 16. Bxd6 {[%emt 0:02:12]} Re8 {[%emt 0:00:39]} 17. Bb3 {[%emt 0:12:48]} Nde5 {[%emt 0:30:02]} 18. Bxe5 {[%emt 0:02:32]} Nxe5 {[%emt 0:01:08]} 19. Bd5 {[%emt 0:00:37]} Nxf3+ {[%emt 0:01:47]} 20. Qxf3 {[%emt 0:00:07]} Ra7 {[%emt 0:00:07]} 21. Ng3 {[%emt 0:04:58]} g6 {[%emt 0:03:46]} 22. Ne2 {[%emt 0:05:23]} Be6 {[%emt 0:04:34]} 23. Nf4 {[%emt 0:01:34]} Bg7 {[%emt 0:01:53]} 24. Qb3 {[%emt 0:04:43]} Qd6 {[%emt 0:01:50]} 25. Bxe6 {[%emt 0:04:13]} Qxf4 {[%emt 0:05:49]} 26. Bd5 {[%emt 0:00:21]} Rc7 {[%emt 0:00:57]} 27. g3 {[%emt 0:02:25]} Qf6 {[%emt 0:04:52]} 28. Rac1 {[%emt 0:01:40]} Rec8 {[%emt 0:04:11]} 29. Rxc7 {[%emt 0:01:28]} Rxc7 {[%emt 0:00:01]} 30. e5 {[%emt 0:03:38]} Qe7 {[%emt 0:01:54]} 31. Qd3 {[%emt 0:06:49]} Qb4 {[%emt 0:02:42]} 32. Re2 {[%emt 0:00:38]} Rc1+ {[%emt 0:01:32]} 33. Kg2 {[%emt 0:00:30]} Qc5 {[%emt 0:04:36]} 34. Qf3 {[%emt 0:00:52]} Qe7 {[%emt 0:00:38]} 35. e6 {[%emt 0:01:28]} f5 {[%emt 0:00:39]} 36. Qa3 {[%emt 0:01:24]} Bf8 {[%emt 0:01:31]} 37. Qxa6 {[%emt 0:00:34]} Rc5 {[%emt 0:02:31]} 38. Bb3 {[%emt 0:00:25]} f4 {[%emt 0:01:04]} 39. Qa8 {[%emt 0:03:04]} Kg7 {[%emt 0:00:30]} 40. Qe4 {[%emt 0:00:29]} f3+ {[%emt 0:00:44]} 41. Qxf3 {[%emt 0:15:17]} Qf6 {[%emt 0:00:00]} 42. Qxf6+ {[%emt 0:00:00]} Kxf6 {[%emt 0:00:00]} 43. Rd2 {[%emt 0:00:00]} Ke5 {[%emt 0:00:00]} 44. f4+ {[%emt 0:00:00]} Ke4 {[%emt 0:00:00]} 45. e7 {[%emt 0:00:00]} Bxe7 {[%emt 0:00:00]} 46. Re2+ {[%emt 0:00:00]} Kd3 {[%emt 0:00:00]} 47. Rxe7 {[%emt 0:00:00]} Kd2 {[%emt 0:00:00]} 48. Kf3 {[%emt 0:00:00]} d3 {[%emt 0:00:00]} 49. Rd7 {[%emt 0:00:00]} Rc8 {[%emt 0:00:00]} 50. a4 {[%emt 0:00:00]} h5 {[%emt 0:00:00]} 51. axb5 {[%emt 0:00:00]} Re8 {[%emt 0:00:00]} 52. f5 {[%emt 0:00:00]} g5 {[%emt 0:00:00]} 53. Be6 {[%emt 0:00:00]} Rb8 {[%emt 0:00:00]} 54. Bc4 {[%emt 0:00:00]} Kc2 {[%emt 0:00:00]} 55. Bxd3+ {[%emt 0:00:00]} Kxb2 {[%emt 0:00:00]} 56. f6 {[%emt 0:00:00]} Kc3 {[%emt 0:00:00]} 57. f7 {[%emt 0:00:00]} Kd2 {[%emt 0:00:00]} 58. Bg6+ {[%emt 0:00:00]} Kc3 {[%emt 0:00:00]} 59. Bxh5 {[%emt 0:00:00]} Kc4 {[%emt 0:00:00]} 60. Re7 {[%emt 0:00:00]} Kxb5 {[%emt 0:00:00]} 61. Re8 {[%emt 0:00:00]} Rb7 {[%emt 0:00:00]} 62. f8=Q {[%emt 0:00:00]} g4+ {[%emt 0:00:00]} 63. Bxg4 {[%emt 0:00:00]} Kb6 {[%emt 0:00:00]} 64. Re6+ {[%emt 0:00:00]} Ka7 {[%emt 0:00:00]} 65. Re7 {[%emt 0:00:00]} Rxe7 {[%emt 0:00:00]} 66. Qxe7+ {[%emt 0:00:00]} Ka8 {[%emt 0:00:00]} 67. Qd7 {[%emt 0:00:00]} Kb8 {[%emt 0:00:00]} 68. Ke3 {[%emt 0:00:00]} Ka8 {[%emt 0:00:00]} 69. Bf3+ {[%emt 0:00:00]} Kb8 {[%emt 0:00:00]} 70. Qb7# {[%emt 0:00:00]} 1-0